fUSD/lending_fUSD_20251212
["ID","MTS","AMOUNT","RATE_DAILY","PERIOD"]
[398340109,1765538073163,-624.2897116,0.00040547,30]
[398340110,1765538073172,-907.2,0.00040547,30]
[398340111,1765538073182,-566.21,0.00040547,30]
[398340112,1765538073192,-1677.04,0.00040547,30]
[398340113,1765538073201,-786.93,0.00040547,30]
[398340114,1765538073211,-1523.05,0.00040547,30]
[398340115,1765538073220,-500.0,0.00040547,30]
[398340116,1765538073230,-623.75,0.00040547,30]
[398340117,1765538073240,-646.21,0.00040547,30]
[398340118,1765538073249,-500.0,0.00040547,30]
[398340119,1765538073258,-500.0,0.00040547,30]
[398340120,1765538073268,-850.56,0.00040547,30]
[398340121,1765538073277,-506.59,0.00040547,30]
[398340122,1765538073287,-2457.1,0.00040547,30]
[398340123,1765538073296,-512.96897646,0.00040547,30]
[398340124,1765538073305,-1824.58,0.00040547,30]
[398340125,1765538073315,-593.38,0.00040547,30]
[398340126,1765538073324,-602.98946786,0.00040547,30]
[398340127,1765538073333,-500.0,0.00040547,30]
[398340128,1765538073342,-500.0,0.00040547,30]
[398340129,1765538073352,-2498.97,0.00040547,30]
[398340130,1765538073362,-937.73,0.00040547,30]
[398340131,1765538073371,-500.0,0.00040547,30]
[398340132,1765538073381,-506.69510978,0.00040547,30]
[398340133,1765538073390,-542.22251228,0.00040547,30]
[398340134,1765538073400,-7728.61,0.00040547,30]
[398340135,1765538073409,-500.0,0.00040547,30]
[398340136,1765538073418,-500.0,0.00040547,30]
[398340137,1765538073428,-505.95604429,0.00040547,30]
[398340138,1765538073437,-521.3,0.00040547,30]
[398340139,1765538073446,-5162.44,0.00040547,30]
[398340140,1765538073455,-2045.54,0.00040547,30]
[398340141,1765538073464,-4512.65,0.00040547,30]
[398340142,1765538073474,-2044.49,0.00040547,30]
[398340143,1765538073482,-500.0,0.00040547,30]
[398340144,1765538073499,-803.09,0.00040547,30]
[398340145,1765538073520,-500.0,0.00040547,30]
[398340146,1765538073534,-500.0,0.00040547,30]
[398340147,1765538073552,-880.62,0.00040547,30]
[398340148,1765538073568,-1055.54,0.00040547,30]
[398340149,1765538073587,-500.0,0.00040547,30]
[398340150,1765538073604,-1170.58,0.00040547,30]
[398340151,1765538073618,-2563.76,0.00040547,30]
[398340152,1765538073635,-500.0,0.00040547,30]
[398340153,1765538073652,-3132.56,0.00040547,30]
[398340154,1765538073669,-647.8,0.00040547,30]
[398340155,1765538073686,-920.56,0.00040547,30]
[398340156,1765538073704,-1267.04,0.00040547,30]
[398340157,1765538073721,-1034.08,0.00040547,30]
[398340158,1765538073738,-500.0,0.00040547,30]
[398340159,1765538073753,-213.36220069,0.00040547,30]
[398340160,1765538073773,-636.17,0.00040547,30]
[398340161,1765538073792,-534.23,0.00040547,30]
[398340162,1765538073807,-9205.7,0.00040547,30]
[398340163,1765538073819,-2487.95,0.00040547,14]
[398340164,1765538073837,-852.0,0.00040547,30]
[398340165,1765538073850,-500.0,0.00040547,30]
[398340166,1765538073863,-500.0,0.00040547,30]
[398340167,1765538073880,-1627.24,0.00040547,30]
[398340168,1765538073899,-9937.58,0.00040547,30]
[398340169,1765538073920,-1228.02,0.00040547,30]
[398340170,1765538073940,-727.84,0.00040547,30]
[398340171,1765538073958,-470.90267116,0.00040547,30]
[398340172,1765538073976,-709.82,0.00040547,30]
[398340173,1765538073993,-2584.59,0.00040547,30]
[398340174,1765538074011,-3111.31,0.00040547,30]
[398340175,1765538074031,-938.28,0.00040547,30]
[398340176,1765538074049,-500.0,0.00040547,30]
[398340177,1765538074068,-500.0,0.00040547,30]
[398340178,1765538074085,-724.94,0.00040547,30]
[398340179,1765538074103,-2254.56,0.00040547,30]
[398340180,1765538074120,-899.02,0.00040547,30]
[398340181,1765538074136,-922.78,0.00040547,30]
[398340182,1765538074153,-500.0,0.00040547,30]
[398340183,1765538074169,-500.0,0.00040547,30]
[398340184,1765538074183,-730.51,0.00040547,30]
[398340185,1765538074199,-500.0,0.00040547,30]
[398340186,1765538074213,-670.8,0.00040547,30]
[398340187,1765538074228,-500.0,0.00040547,30]
[398340188,1765538074242,-890.92,0.00040547,30]
[398340189,1765538074256,-1306.66,0.00040547,30]
[398340190,1765538074270,-500.0,0.00040547,30]
[398340191,1765538074283,-500.0,0.00040547,30]
[398340192,1765538074297,-949.39,0.00040547,30]
[398340193,1765538074311,-1193.64,0.00040547,30]
[398340194,1765538074324,-667.64,0.00040547,30]
[398340195,1765538074338,-1105.53,0.00040547,30]
[398340196,1765538074354,-500.0,0.00040547,30]
[398340197,1765538074369,-500.0,0.00040547,30]
[398340198,1765538074383,-605.47043161,0.00040547,30]
[398340199,1765538074399,-1566.37,0.00040547,30]
[398340200,1765538074412,-691.31,0.00040547,30]
[398340201,1765538074425,-986.5,0.00040547,30]
[398340202,1765538074438,-2660.16,0.00040547,30]
[398340203,1765538074452,-500.0,0.00040547,30]
[398340204,1765538074466,-677.72,0.00040547,30]
[398340205,1765538074480,-1062.51,0.00040547,30]
[398340206,1765538074494,-500.0,0.00040547,30]
[398340207,1765538074507,-1023.2,0.00040547,30]
[398340208,1765538074521,-765.14,0.00040547,30]
[398340209,1765538074535,-2249.34,0.00040547,30]
[398340210,1765538074549,-541.12,0.00040547,30]
[398340211,1765538074562,-641.4,0.00040547,30]
[398340212,1765538074577,-500.0,0.00040547,30]
[398340213,1765538074588,-396.59687696,0.00040547,30]
[398340214,1765538074610,-2149.98,0.00040547,30]
[398340215,1765538074623,-1066.93,0.00040547,30]
[398340216,1765538074635,-378.92653486,0.00040547,30]
[398340217,1765538074647,-524.47896994,0.00040547,30]
[398340218,1765538074659,-500.0,0.00040547,30]
[398340219,1765538074671,-1794.3,0.00040547,30]
[398340220,1765538074683,-500.0,0.00040547,30]
[398340221,1765538074696,-500.0,0.00040547,30]
[398340222,1765538074905,-6024.98,0.00040547,30]
[398340223,1765538074918,-500.0,0.00040547,30]
[398340224,1765538074934,-652.45,0.00040547,30]
[398340225,1765538074949,-500.0,0.00040547,30]
[398340226,1765538074963,-584.74,0.00040547,30]
[398340227,1765538074977,-500.0,0.00040547,30]
[398340228,1765538074990,-1595.92,0.00040547,30]
[398340229,1765538075004,-1243.86,0.00040547,30]
[398340230,1765538075017,-920.72,0.00040547,30]
[398340231,1765538075031,-500.0,0.00040547,30]
[398340232,1765538075045,-616.65,0.00040547,30]
[398340233,1765538075058,-3185.29,0.00040547,30]
[398340234,1765538075072,-1899.74,0.00040547,30]
[398340235,1765538075086,-767.47,0.00040547,30]
[398340236,1765538075099,-3636.79,0.00040547,30]
[398340237,1765538075112,-506.82800647,0.00040547,30]
[398340238,1765538075125,-1218.06,0.00040547,30]
[398340239,1765538075138,-1283.24,0.00040547,30]
[398340240,1765538075151,-500.0,0.00040547,30]
[398340241,1765538075164,-500.0,0.00040547,30]
[398340242,1765538075178,-3032.18,0.00040547,30]
[398340243,1765538075193,-500.0,0.00040547,30]
[398340244,1765538075206,-616.0,0.00040547,30]
[398340245,1765538075219,-1329.42,0.00040547,30]
[398340246,1765538075233,-516.3432518,0.00040547,30]
[398340247,1765538075246,-500.0,0.00040547,30]
[398340248,1765538075261,-638.79,0.00040547,30]
[398340249,1765538075272,-500.0,0.00040547,30]
[398340250,1765538075286,-950.53,0.00040547,30]
[398340251,1765538075298,-664.16,0.00040547,30]
[398340252,1765538075311,-500.0,0.00040547,30]
[398340253,1765538075323,-1066.97,0.00040547,30]
[398340254,1765538075336,-599.13,0.00040547,30]
[398340255,1765538075348,-500.0,0.00040547,30]
[398340256,1765538075360,-1433.51,0.00040547,30]
[398340257,1765538075372,-2849.13,0.00040547,30]
[398340258,1765538075385,-6840.01,0.00040547,30]
[398340259,1765538075398,-500.0,0.00040547,30]
[398340260,1765538075411,-500.0,0.00040547,30]
[398340261,1765538075425,-642.56,0.00040547,30]
[398340262,1765538075438,-2147.05,0.00040547,30]
[398340263,1765538075450,-6708.51,0.00040547,30]
[398340264,1765538075463,-500.0,0.00040547,30]
[398340265,1765538075477,-1746.8,0.00040547,30]
[398340266,1765538075491,-500.0,0.00040547,30]
[398340268,1765538075504,-1135.94,0.00040547,30]
[398340269,1765538075517,-1293.36,0.00040547,30]
[398340270,1765538075529,-500.0,0.00040547,30]
[398340271,1765538075542,-500.0,0.00040547,30]
[398340272,1765538075554,-500.0,0.00040547,30]
[398340273,1765538075565,-1510.63,0.00040547,30]
[398340274,1765538075577,-500.0,0.00040547,30]
[398340275,1765538075589,-911.19,0.00040547,30]
[398340276,1765538075600,-2130.63,0.00040547,30]
[398340277,1765538075612,-500.0,0.00040547,30]
[398340278,1765538075623,-1011.94,0.00040547,30]
[398340279,1765538075635,-1929.57,0.00040547,30]
[398340280,1765538075646,-657.48,0.00040547,30]
[398340281,1765538075657,-1120.09,0.00040547,30]
[398340282,1765538075669,-732.14,0.00040547,30]
[398340283,1765538075681,-4030.69,0.00040547,30]
[398340284,1765538075692,-500.0,0.00040547,30]
[398340285,1765538075705,-995.54,0.00040547,30]
[398340286,1765538075717,-1083.81,0.00040547,30]
[398340287,1765538075729,-726.94,0.00040547,30]
[398340288,1765538075740,-3238.19,0.00040547,30]
[398340289,1765538075752,-608.27,0.00040547,30]
[398340290,1765538075764,-2367.27,0.00040547,30]
[398340291,1765538075776,-500.0,0.00040547,30]
[398340292,1765538075788,-500.0,0.00040547,30]
[398340293,1765538075800,-500.0,0.00040547,30]
[398340294,1765538075812,-583.32,0.00040547,30]
[398340295,1765538075823,-500.0,0.00040547,30]
[398340296,1765538075836,-625.74,0.00040547,30]
[398340297,1765538075847,-500.0,0.00040547,30]
[398340298,1765538075859,-500.0,0.00040547,30]
[398340299,1765538075875,-2843.71,0.00040547,30]
[398340300,1765538075888,-1329.63,0.00040547,30]
[398340301,1765538075899,-500.0,0.00040547,30]
[398340302,1765538075912,-605.17,0.00040547,30]
[398340303,1765538075923,-500.0,0.00040547,30]
[398340304,1765538075935,-610.47,0.00040547,30]
[398340305,1765538075948,-677.17,0.00040547,30]
[398340306,1765538075960,-1219.89,0.00040547,30]
[398340307,1765538075971,-1003.5,0.00040547,30]
[398340308,1765538075984,-658.88,0.00040547,30]
[398340309,1765538075996,-621.26,0.00040547,30]
[398340310,1765538076008,-500.0,0.00040547,30]
[398340311,1765538076021,-500.0,0.00040547,30]
[398340312,1765538076033,-500.0,0.00040547,30]
[398340313,1765538076045,-2089.28,0.00040547,30]
[398340314,1765538076060,-500.0,0.00040547,30]
[398340315,1765538076072,-777.33,0.00040547,30]
[398340316,1765538077799,-349.67660296,0.00040547,30]
[398340317,1765538077829,-506.96,0.00040547,30]
[398340318,1765538077839,-600.44,0.00040547,30]
[398340319,1765538077848,-557.42,0.00040547,30]
[398340320,1765538077858,-610.54,0.00040547,30]
[398340321,1765538077871,-500.0,0.00040547,30]
[398340322,1765538077880,-500.0,0.00040547,30]
[398340323,1765538077891,-516.74,0.00040547,30]
[398340324,1765538077900,-500.0,0.00040547,15]
[398340325,1765538077910,-759.14,0.00040547,30]
[398340326,1765538077919,-571.0,0.00040547,30]
[398340327,1765538077929,-588.85,0.00040547,30]
[398340328,1765538077939,-1161.86,0.00040547,30]
[398340329,1765538077950,-1044.6,0.00040547,30]
[398340330,1765538077960,-2199.62,0.00040547,30]
[398340331,1765538077970,-561.04341689,0.00040547,30]
[398340332,1765538077979,-500.0,0.00040547,30]
[398340333,1765538077989,-503.79,0.00040547,30]
[398340334,1765538077998,-500.0,0.00040547,30]
[398340335,1765538078008,-500.0,0.00040547,30]
[398340336,1765538078018,-500.0,0.00040547,30]
[398340337,1765538078027,-500.0,0.00040547,30]
[398340338,1765538078037,-500.0,0.00040547,30]
[398340339,1765538078047,-500.0,0.00040547,30]
[398340340,1765538078057,-578.6,0.00040547,30]
[398340341,1765538078067,-809.01,0.00040547,30]
[398340342,1765538078076,-500.0,0.00040547,30]
[398340343,1765538078086,-719.27,0.00040547,30]
[398340344,1765538078096,-2620.34,0.00040547,30]
[398340345,1765538078106,-1731.68,0.00040547,30]
[398340346,1765538078116,-517.1,0.00040547,30]
[398340347,1765538078126,-2018.77,0.00040547,30]
[398340348,1765538078135,-500.0,0.00040547,30]
[398340349,1765538078145,-822.61,0.00040547,30]
[398340350,1765538078155,-500.0,0.00040547,30]
[398340351,1765538078165,-511.8,0.00040547,30]
[398340352,1765538078174,-1929.49,0.00040547,30]
[398340353,1765538078184,-1245.76,0.00040547,30]
[398340354,1765538078194,-500.0,0.00040547,30]
[398340355,1765538078204,-629.76,0.00040547,30]
[398340356,1765538078213,-500.0,0.00040547,30]
[398340357,1765538078223,-504.87,0.00040547,30]
[398340358,1765538078232,-2747.32,0.00040547,30]
[398340359,1765538078242,-3082.74,0.00040547,30]
[398340360,1765538078252,-1765.66,0.00040547,30]
[398340361,1765538078262,-992.27,0.00040547,30]
[398340362,1765538078272,-810.69,0.00040547,30]
[398340363,1765538078282,-669.73,0.00040547,30]
[398340364,1765538078292,-1342.66,0.00040547,30]
[398340365,1765538078302,-648.8,0.00040547,30]
[398340366,1765538078312,-682.03,0.00040547,30]
[398340367,1765538078322,-1864.3,0.00040547,30]
[398340368,1765538078331,-500.0,0.00040547,30]
[398340369,1765538078341,-689.18,0.00040547,30]
[398340370,1765538078351,-598.31,0.00040547,30]
[398340371,1765538078361,-792.27,0.00040547,30]
[398340372,1765538078371,-2535.84,0.00040547,30]
[398340373,1765538078381,-500.0,0.00040547,30]
[398340374,1765538078391,-500.0,0.00040547,30]
[398340375,1765538078400,-1454.84,0.00040547,30]
[398340376,1765538078410,-500.0,0.00040547,30]
[398340377,1765538078419,-836.48,0.00040547,30]
[398340378,1765538078429,-630.54,0.00040547,30]
[398340379,1765538078438,-542.7,0.00040547,30]
[398340380,1765538078448,-500.0,0.00040547,30]
[398340381,1765538078458,-625.15,0.00040547,30]
[398340382,1765538078468,-2978.69,0.00040547,30]
[398340383,1765538078477,-500.0,0.00040547,30]
[398340384,1765538078487,-566.99,0.00040547,30]
[398340385,1765538078497,-501.3,0.00040547,30]
[398340386,1765538078507,-1577.35,0.00040547,30]
[398340387,1765538078516,-430.15242592,0.00040547,30]
[398340388,1765538078526,-716.61,0.00040547,30]
[398340389,1765538078536,-2248.13,0.00040547,30]
[398340390,1765538078545,-556.61,0.00040547,30]
[398340391,1765538078554,-500.0,0.00040547,30]
[398340392,1765538078563,-1673.77,0.00040547,30]
[398340393,1765538078573,-2331.84,0.00040547,30]
[398340394,1765538078583,-1028.79,0.00040547,30]
[398340395,1765538078593,-2147.02,0.00040547,30]
[398340396,1765538078602,-1527.47,0.00040547,30]
[398340397,1765538078611,-500.0,0.00040547,30]
[398340398,1765538078621,-500.28,0.00040547,30]
[398340399,1765538078630,-1715.19,0.00040547,30]
[398340400,1765538078640,-594.01,0.00040547,30]
[398340401,1765538078652,-1740.0,0.00040547,30]
[398340402,1765538078661,-567.29,0.00040547,30]
[398340403,1765538078671,-500.0,0.00040547,30]
[398340404,1765538078681,-633.47,0.00040547,30]
[398340405,1765538078690,-2330.09,0.00040547,30]
[398340406,1765538078699,-527.63,0.00040547,30]
[398340407,1765538078708,-500.0,0.00040547,30]
[398340408,1765538078718,-563.14,0.00040547,30]
[398340409,1765538078727,-1444.41,0.00040547,30]
[398340410,1765538078737,-588.23,0.00040547,30]
[398340411,1765538078746,-500.0,0.00040547,30]
[398340412,1765538078756,-500.0,0.00040547,30]
[398340413,1765538078765,-1747.95,0.00040547,30]
[398340414,1765538078774,-763.9,0.00040547,30]
[398340415,1765538078784,-500.0,0.00040547,30]
[398340416,1765538078795,-818.9,0.00040547,30]
[398340417,1765538078804,-972.17,0.00040547,30]
[398340418,1765538078814,-573.6,0.00040547,30]
[398340419,1765538078823,-556.13,0.00040547,30]
[398340420,1765538078833,-666.96,0.00040547,30]
[398340421,1765538078843,-500.0,0.00040547,30]
[398340422,1765538078852,-500.0,0.00040547,30]
[398340423,1765538078862,-1283.05,0.00040547,30]
[398340424,1765538078875,-798.2,0.00040547,30]
[398340425,1765538078885,-6586.39,0.00040547,30]
[398340426,1765538078894,-989.92,0.00040547,30]
[398340427,1765538078904,-500.0,0.00040547,30]
[398340428,1765538078913,-500.0,0.00040547,30]
[398340429,1765538078924,-502.68,0.00040547,30]
[398340430,1765538078934,-500.0,0.00040547,30]
[398340431,1765538078944,-500.0,0.00040547,30]
[398340432,1765538078954,-500.0,0.00040547,30]
[398340433,1765538078965,-500.0,0.00040547,30]
[398340434,1765538078975,-709.01,0.00040547,30]
[398340435,1765538078985,-500.0,0.00040547,30]
[398340436,1765538078995,-500.0,0.00040547,30]
[398340437,1765538079005,-1180.74,0.00040547,30]
[398340438,1765538079015,-589.52,0.00040547,30]
[398340439,1765538079025,-529.51,0.00040547,30]
[398340440,1765538079035,-500.0,0.00040547,30]
[398340441,1765538079045,-571.81461283,0.00040547,30]
[398340442,1765538079055,-500.0,0.00040547,30]
[398340443,1765538079065,-500.0,0.00040547,30]
[398340444,1765538079075,-500.0,0.00040547,30]
[398340445,1765538079085,-720.32,0.00040547,30]
[398340446,1765538079095,-509.99,0.00040547,30]
[398340447,1765538079104,-500.0,0.00040547,30]
[398340448,1765538079114,-752.38,0.00040547,30]
[398340449,1765538079124,-500.0,0.00040547,30]
[398340450,1765538079134,-899.81,0.00040547,30]
[398340451,1765538079144,-500.0,0.00040547,30]
[398340452,1765538079155,-500.0,0.00040547,30]
[398340453,1765538079164,-634.12,0.00040547,30]
[398340454,1765538079174,-1738.8,0.00040547,30]
[398340455,1765538079184,-500.0,0.00040547,30]
[398340456,1765538079194,-622.13,0.00040547,30]
[398340457,1765538079204,-500.0,0.00040547,30]
[398340458,1765538079214,-10008.33,0.00040547,30]
[398340459,1765538079224,-1816.12,0.00040547,30]
[398340460,1765538079234,-619.66442065,0.00040547,30]
[398340461,1765538079243,-1222.19,0.00040547,30]
[398340462,1765538079253,-500.0,0.00040547,30]
[398340463,1765538079263,-506.67,0.00040547,30]
[398340464,1765538079272,-359.96488662,0.00040547,30]
[398340465,1765538079281,-614.15,0.00040547,30]
[398340466,1765538079291,-853.5,0.00040547,30]
[398340467,1765538079300,-867.61,0.00040547,30]
[398340468,1765538079310,-500.0,0.00040547,30]
[398340469,1765538079320,-1730.62,0.00040547,30]
[398340470,1765538079329,-500.0,0.00040547,30]
[398340471,1765538079339,-500.0,0.00040547,30]
[398340472,1765538079349,-500.0,0.00040547,30]
[398340473,1765538079358,-642.79,0.00040547,30]
[398340474,1765538079367,-5043.62,0.00040547,30]
[398340475,1765538079377,-2044.69,0.00040547,30]
[398340476,1765538079387,-500.0,0.00040547,30]
[398340477,1765538079396,-500.0,0.00040547,30]
[398340478,1765538079406,-1215.55,0.00040547,30]
[398340479,1765538079415,-500.0,0.00040547,30]
[398340480,1765538079425,-500.0,0.00040547,30]
[398340481,1765538079435,-500.0,0.00040547,30]
[398340482,1765538079444,-500.0,0.00040547,30]
[398340483,1765538079453,-1545.49,0.00040547,30]
[398340484,1765538079463,-660.88,0.00040547,30]
[398340485,1765538079472,-1589.48,0.00040547,30]
[398340486,1765538079482,-628.02,0.00040547,30]
[398340487,1765538079491,-626.53,0.00040547,30]
[398340488,1765538079501,-602.06,0.00040547,30]
[398340489,1765538079510,-500.0,0.00040547,30]
[398340490,1765538079520,-840.42,0.00040547,30]
[398340491,1765538079529,-500.0,0.00040547,30]
[398340492,1765538079539,-699.47,0.00040547,30]
[398340493,1765538079548,-905.19,0.00040547,30]
[398340494,1765538079557,-2585.93,0.00040547,30]
[398340495,1765538079567,-752.57,0.00040547,30]
[398340496,1765538079577,-789.34,0.00040547,30]
[398340497,1765538079586,-3440.78,0.00040547,30]
[398340498,1765538079595,-563.79,0.00040547,30]
[398340499,1765538079605,-500.0,0.00040547,30]
[398340500,1765538079615,-500.0,0.00040547,30]
[398340501,1765538079624,-571.37,0.00040547,30]
[398340502,1765538079634,-500.54,0.00040547,30]
[398340503,1765538079643,-500.0,0.00040547,30]
[398340504,1765538079653,-500.0,0.00040547,30]
[398340505,1765538079662,-509.62,0.00040547,30]
[398340506,1765538079671,-669.04,0.00040547,30]
[398340507,1765538079681,-3771.23,0.00040547,30]
[398340508,1765538079690,-813.18,0.00040547,30]
[398340509,1765538079699,-500.0,0.00040547,30]
[398340510,1765538079709,-500.0,0.00040547,30]
[398340511,1765538079719,-1179.73,0.00040547,30]
[398340512,1765538079729,-500.0,0.00040547,30]
[398340513,1765538079738,-500.0,0.00040547,30]
[398340514,1765538079747,-1235.8,0.00040547,30]
[398340515,1765538079756,-1360.54,0.00040547,30]
[398340516,1765538079766,-604.12,0.00040547,30]
[398340517,1765538079775,-500.0,0.00040547,30]
[398340518,1765538079785,-500.0,0.00040547,30]
[398340519,1765538079795,-1586.65,0.00040547,30]
[398340520,1765538079804,-500.0,0.00040547,2]
[398340521,1765538079814,-500.0,0.00040547,30]
[398340522,1765538079823,-500.0,0.00040547,30]
[398340523,1765538079832,-972.77,0.00040547,30]
[398340524,1765538079841,-500.0,0.00040547,30]
[398340525,1765538079851,-500.0,0.00040547,30]
[398340526,1765538079860,-500.0,0.00040547,30]
[398340527,1765538079872,-500.0,0.00040547,30]
[398340528,1765538079882,-500.0,0.00040547,30]
[398340529,1765538079891,-4363.05,0.00040547,30]
[398340530,1765538079901,-731.82,0.00040547,30]
[398340531,1765538079911,-1418.58,0.00040547,30]
[398340532,1765538079920,-1625.02,0.00040547,30]
[398340533,1765538079930,-500.0,0.00040547,30]
[398340534,1765538079939,-500.0,0.00040547,30]
[398340535,1765538079950,-500.0,0.00040547,30]
[398340536,1765538079959,-500.0,0.00040547,30]
[398340537,1765538079969,-500.0,0.00040547,30]
[398340538,1765538079978,-805.19,0.00040547,30]
[398340539,1765538079988,-500.0,0.00040547,30]
[398340540,1765538079998,-1679.93,0.00040547,30]
[398340541,1765538080008,-507.59114804,0.00040547,30]
[398340542,1765538080017,-500.0,0.00040547,30]
[398340543,1765538080027,-11739.26,0.00040547,30]
[398340544,1765538080037,-510.13,0.00040547,30]
[398340545,1765538080047,-500.0,0.00040547,30]
[398340546,1765538080056,-505.04942881,0.00040547,30]
[398340547,1765538080066,-1704.19,0.00040547,30]
[398340548,1765538080076,-878.65,0.00040547,30]
[398340549,1765538080085,-500.0,0.00040547,30]
[398340550,1765538080095,-619.07,0.00040547,30]
[398340551,1765538080105,-2892.66,0.00040547,30]
[398340552,1765538080260,-500.0,0.00040547,30]
[398340553,1765538080270,-500.0,0.00040547,30]
[398340554,1765538080280,-500.0,0.00040547,30]
[398340555,1765538080289,-1899.29,0.00040547,30]
[398340556,1765538080299,-500.0,0.00040547,30]
[398340557,1765538080308,-1019.28,0.00040547,30]
[398340558,1765538080318,-500.0,0.00040547,30]
[398340559,1765538080327,-500.0,0.00040547,30]
[398340560,1765538080337,-1418.57,0.00040547,30]
[398340561,1765538080347,-500.0,0.00040547,30]
[398340562,1765538080358,-500.0,0.00040547,30]
[398340563,1765538080368,-500.0,0.00040547,30]
[398340564,1765538080378,-736.31,0.00040547,30]
[398340565,1765538080387,-500.0,0.00040547,30]
[398340566,1765538080397,-500.0,0.00040547,30]
[398340567,1765538080408,-803.38,0.00040547,30]
[398340568,1765538080418,-500.0,0.00040547,30]
[398340569,1765538080427,-522.15,0.00040547,30]
[398340570,1765538080437,-512.98569901,0.00040547,30]
[398340571,1765538080447,-500.0,0.00040547,30]
[398340572,1765538080457,-500.0,0.00040547,30]
[398340573,1765538080466,-500.0,0.00040547,30]
[398340574,1765538080476,-1055.47,0.00040547,30]
[398340575,1765538080485,-694.39,0.00040547,30]
[398340576,1765538080494,-1480.3,0.00040547,30]
[398340577,1765538080504,-1529.14,0.00040547,30]
[398340578,1765538080513,-1887.69,0.00040547,30]
[398340579,1765538080533,-500.0,0.00040547,30]
[398340580,1765538080544,-1537.38,0.00040547,30]
[398340581,1765538080554,-814.49,0.00040547,30]
[398340582,1765538080563,-500.0,0.00040547,30]
[398340583,1765538080573,-500.0,0.00040547,30]
[398340584,1765538080583,-878.0,0.00040547,30]
[398340585,1765538080593,-542.52,0.00040547,30]
[398340586,1765538080603,-500.0,0.00040547,30]
[398340587,1765538080613,-500.0,0.00040547,30]
[398340588,1765538080622,-1609.53,0.00040547,30]
[398340589,1765538080631,-169.99652179,0.00040547,30]
[398340590,1765538080642,-1220.84,0.00040547,30]
[398340591,1765538080652,-1987.44,0.00040547,30]
[398340592,1765538080662,-500.0,0.00040547,30]
[398340593,1765538080672,-1330.17,0.00040547,30]
[398340594,1765538080682,-994.63,0.00040547,30]
[398340595,1765538080691,-1382.15,0.00040547,30]
[398340596,1765538080701,-500.0,0.00040547,30]
[398340597,1765538080711,-500.0,0.00040547,30]
[398340598,1765538080720,-1159.62,0.00040547,30]
[398340599,1765538080730,-439.06716138,0.00040547,30]
[398340600,1765538080740,-1136.89,0.00040547,30]
[398340601,1765538080749,-556.58,0.00040547,30]
[398340602,1765538080759,-9826.53,0.00040547,30]
[398340603,1765538080769,-309.96565055,0.00040547,30]
[398340604,1765538080779,-500.0,0.00040547,30]
[398340605,1765538080788,-972.17,0.00040547,30]
[398340606,1765538080798,-500.0,0.00040547,30]
[398340607,1765538080807,-731.37,0.00040547,30]
[398340608,1765538080816,-1614.96,0.00040547,30]
[398340609,1765538080825,-500.0,0.00040547,30]